[Event "*** Titled Tuesday Blitz"]
[Site "Chess.com"]
[Date "2021.02.09"]
[Round "9"]
[White "L1m96"]
[Black "guillembaches"]
[Result "0-1"]
[WhiteElo "2523"]
[BlackElo "2435"]
[TimeControl "180+1"]
[EndTime "11:44:27 PST"]
[Termination "guillembaches won by resignation"]

1. e4 {[%clk 0:02:24.8]} 1... c5 {[%clk 0:03:00.1]} 2. Nf3 {[%clk 0:02:24.3]}
2... d6 {[%clk 0:02:59.9]} 3. d4 {[%clk 0:02:21.6]} 3... cxd4 {[%clk 0:03:00.8]}
4. Nxd4 {[%clk 0:02:21.3]} 4... Nf6 {[%clk 0:03:01.3]} 5. Nc3 {[%clk 0:02:21.5]}
5... Nc6 {[%clk 0:03:01.9]} 6. Bg5 {[%clk 0:02:21.2]} 6... e6 {[%clk 0:03:01.9]}
7. Qd2 {[%clk 0:02:21.4]} 7... h6 {[%clk 0:03:02.5]} 8. Bxf6 {[%clk 0:02:19.2]}
8... gxf6 {[%clk 0:03:03.4]} 9. O-O-O {[%clk 0:02:19.2]} 9... a6 {[%clk
0:03:03.9]} 10. f4 {[%clk 0:02:19.2]} 10... Bd7 {[%clk 0:03:04.1]} 11. g3 {[%clk
0:02:19.4]} 11... Qb6 {[%clk 0:03:03.1]} 12. Kb1 {[%clk 0:02:17.3]} 12... h5
{[%clk 0:03:02.5]} 13. f5 {[%clk 0:02:14.5]} 13... Bh6 {[%clk 0:02:40.8]} 14.
Qd3 {[%clk 0:02:13.3]} 14... Nxd4 {[%clk 0:02:40.6]} 15. Qxd4 {[%clk 0:02:13.4]}
15... Qxd4 {[%clk 0:02:40.7]} 16. Rxd4 {[%clk 0:02:14.3]} 16... Ke7 {[%clk
0:02:40.8]} 17. Be2 {[%clk 0:02:01.8]} 17... Bc6 {[%clk 0:02:23.4]} 18. Rhd1
{[%clk 0:01:56.1]} 18... Rad8 {[%clk 0:02:22.8]} 19. R4d3 {[%clk 0:01:49.7]}
19... h4 {[%clk 0:02:18.9]} 20. g4 {[%clk 0:01:49.2]} 20... Bf4 {[%clk
0:02:17.7]} 21. h3 {[%clk 0:01:49.8]} 21... Be5 {[%clk 0:02:16.5]} 22. a3 {[%clk
0:01:49.8]} 22... b5 {[%clk 0:02:15.6]} 23. Bf3 {[%clk 0:01:49.1]} 23... Rc8
{[%clk 0:02:12.7]} 24. Ne2 {[%clk 0:01:48.5]} 24... a5 {[%clk 0:01:58.9]} 25.
Nd4 {[%clk 0:01:48.5]} 25... Bd7 {[%clk 0:01:59.1]} 26. Be2 {[%clk 0:01:41.3]}
26... b4 {[%clk 0:01:53.5]} 27. axb4 {[%clk 0:01:39]} 27... axb4 {[%clk
0:01:52.4]} 28. Rb3 {[%clk 0:01:38.6]} 28... Rb8 {[%clk 0:01:41.1]} 29. Nf3
{[%clk 0:01:38.3]} 29... Bg3 {[%clk 0:01:35.1]} 30. Nd4 {[%clk 0:01:27.6]} 30...
Rhc8 {[%clk 0:01:31.3]} 31. Re3 {[%clk 0:01:16.7]} 31... Rc5 {[%clk 0:01:22.6]}
32. Nb3 {[%clk 0:01:15.5]} 32... Rc7 {[%clk 0:01:18.6]} 33. Na5 {[%clk
0:01:12.6]} 33... Be5 {[%clk 0:01:12.9]} 34. Nc4 {[%clk 0:01:09.3]} 34... Bf4
{[%clk 0:01:10.7]} 35. Rf3 {[%clk 0:01:07]} 35... Bg3 {[%clk 0:01:07.7]} 36. Na5
{[%clk 0:01:00]} 36... Ra8 {[%clk 0:01:04.8]} 37. Nb3 {[%clk 0:00:59.6]} 37...
Ba4 {[%clk 0:00:55.9]} 38. Bd3 {[%clk 0:00:53.3]} 38... Be5 {[%clk 0:00:51.5]}
39. Re3 {[%clk 0:00:47]} 39... Rca7 {[%clk 0:00:50.6]} 40. Re2 {[%clk
0:00:44.4]} 40... Bc6 {[%clk 0:00:44.6]} 41. Bc4 {[%clk 0:00:41]} 41... Ra2
{[%clk 0:00:41.1]} 42. c3 {[%clk 0:00:26.4]} 42... bxc3 {[%clk 0:00:41]} 43.
bxc3 {[%clk 0:00:27.3]} 43... Rxe2 {[%clk 0:00:41.2]} 44. Bxe2 {[%clk
0:00:28.2]} 44... Bxe4+ {[%clk 0:00:41.4]} 45. Kb2 {[%clk 0:00:28.1]} 45... Rc8
{[%clk 0:00:40.1]} 46. Rc1 {[%clk 0:00:28]} 46... Bg2 {[%clk 0:00:39.4]} 47. Bf1
{[%clk 0:00:27.9]} 47... Bxf1 {[%clk 0:00:38]} 48. Rxf1 {[%clk 0:00:28.1]} 48...
Rxc3 {[%clk 0:00:38.4]} 0-1

[Event "*** Titled Tuesday Blitz"]
[Site "Chess.com"]
[Date "2021.02.09"]
[Round "9"]
[White "dozer80"]
[Black "Evgeny81"]
[Result "0-1"]
[WhiteElo "2628"]
[BlackElo "2755"]
[TimeControl "180+1"]
[EndTime "11:44:28 PST"]
[Termination "Evgeny81 won by resignation"]

1. e4 {[%clk 0:03:00.9]} 1... c5 {[%clk 0:02:59.3]} 2. Nf3 {[%clk 0:02:59.6]}
2... e6 {[%clk 0:02:59.3]} 3. d4 {[%clk 0:02:56.7]} 3... cxd4 {[%clk 0:03:00.2]}
4. Nxd4 {[%clk 0:02:57.3]} 4... a6 {[%clk 0:02:58.6]} 5. Bd3 {[%clk 0:02:55.6]}
5... Bc5 {[%clk 0:02:58]} 6. Nb3 {[%clk 0:02:53.6]} 6... Be7 {[%clk 0:02:58.3]}
7. Qg4 {[%clk 0:02:50.9]} 7... g6 {[%clk 0:02:58]} 8. Qe2 {[%clk 0:02:49.8]}
8... d6 {[%clk 0:02:57.7]} 9. O-O {[%clk 0:02:47.9]} 9... b6 {[%clk 0:02:57.7]}
10. f4 {[%clk 0:02:43.7]} 10... Bb7 {[%clk 0:02:57.2]} 11. c4 {[%clk 0:02:34.8]}
11... Nf6 {[%clk 0:02:57.2]} 12. Nc3 {[%clk 0:02:33.2]} 12... Nc6 {[%clk
0:02:56.4]} 13. Be3 {[%clk 0:02:30]} 13... Qc7 {[%clk 0:02:55.4]} 14. Rac1
{[%clk 0:02:28.5]} 14... Nb4 {[%clk 0:02:35.7]} 15. Bb1 {[%clk 0:02:23.5]} 15...
Qd8 {[%clk 0:02:35.3]} 16. a3 {[%clk 0:02:19]} 16... Nc6 {[%clk 0:02:35.6]} 17.
Rfd1 {[%clk 0:02:02.7]} 17... Nd7 {[%clk 0:02:35.5]} 18. Kh1 {[%clk 0:01:50.8]}
18... O-O {[%clk 0:02:34.9]} 19. Qf2 {[%clk 0:01:39.3]} 19... Rb8 {[%clk
0:02:28.4]} 20. Rf1 {[%clk 0:01:13]} 20... Nc5 {[%clk 0:02:23.8]} 21. Nd2 {[%clk
0:01:07.9]} 21... Bh4 {[%clk 0:02:11.5]} 22. Qf3 {[%clk 0:01:03.1]} 22... Bf6
{[%clk 0:02:11]} 23. b4 {[%clk 0:00:59.9]} 23... Nd7 {[%clk 0:02:08]} 24. Qh3
{[%clk 0:00:55.6]} 24... Bc8 {[%clk 0:01:53.5]} 25. Nf3 {[%clk 0:00:48.6]} 25...
Bg7 {[%clk 0:01:47.3]} 26. Qg3 {[%clk 0:00:36.3]} 26... Qe7 {[%clk 0:01:44.7]}
27. Rfe1 {[%clk 0:00:31.7]} 27... Nf6 {[%clk 0:01:35.7]} 28. Bd2 {[%clk
0:00:28.6]} 28... Nh5 {[%clk 0:01:32]} 29. Qf2 {[%clk 0:00:28.8]} 29... Kh8
{[%clk 0:01:20.1]} 30. Nd5 {[%clk 0:00:25.7]} 30... Qd8 {[%clk 0:01:17.5]} 31.
Nc3 {[%clk 0:00:23.6]} 31... f5 {[%clk 0:01:13.1]} 32. exf5 {[%clk 0:00:23.8]}
32... gxf5 {[%clk 0:01:13.6]} 33. Ng5 {[%clk 0:00:24.4]} 33... Qf6 {[%clk
0:01:10.2]} 34. Ne2 {[%clk 0:00:15.1]} 34... Qg6 {[%clk 0:01:10.2]} 35. Bc3
{[%clk 0:00:14.3]} 35... Nf6 {[%clk 0:01:10]} 36. Nd4 {[%clk 0:00:13.2]} 36...
Ng4 {[%clk 0:01:07.2]} 37. Qg1 {[%clk 0:00:12.2]} 37... Nxd4 {[%clk 0:01:07.7]}
38. Bxd4 {[%clk 0:00:12.9]} 38... e5 {[%clk 0:01:08.4]} 39. Bb2 {[%clk
0:00:12.7]} 39... exf4 {[%clk 0:01:04.1]} 40. Nf3 {[%clk 0:00:12.5]} 40... Bxb2
{[%clk 0:01:02.4]} 41. Rc2 {[%clk 0:00:11.7]} 41... Bg7 {[%clk 0:01:01.2]} 42.
Rce2 {[%clk 0:00:11.6]} 42... Bb7 {[%clk 0:00:55]} 43. Re6 {[%clk 0:00:11.7]}
43... Rf6 {[%clk 0:00:54.6]} 44. Re7 {[%clk 0:00:10.4]} 44... Ne3 {[%clk
0:00:53]} 45. Nd4 {[%clk 0:00:07.4]} 0-1

[Event "*** Titled Tuesday Blitz"]
[Site "Chess.com"]
[Date "2021.02.09"]
[Round "9"]
[White "1977Ivan"]
[Black "Skat2704"]
[Result "0-1"]
[WhiteElo "2667"]
[BlackElo "2544"]
[TimeControl "180+1"]
[EndTime "11:44:28 PST"]
[Termination "Skat2704 won by resignation"]

1. e4 {[%clk 0:03:00.9]} 1... c5 {[%clk 0:02:48.6]} 2. Nc3 {[%clk 0:02:59.7]}
2... e6 {[%clk 0:02:48.3]} 3. Nge2 {[%clk 0:02:57.8]} 3... Nc6 {[%clk
0:02:45.4]} 4. g3 {[%clk 0:02:53.7]} 4... g6 {[%clk 0:02:44.2]} 5. d4 {[%clk
0:02:51.2]} 5... cxd4 {[%clk 0:02:40.3]} 6. Nxd4 {[%clk 0:02:52.1]} 6... d5
{[%clk 0:02:26.4]} 7. Bb5 {[%clk 0:02:47.1]} 7... Bd7 {[%clk 0:02:22]} 8. exd5
{[%clk 0:02:45.5]} 8... exd5 {[%clk 0:02:20.4]} 9. O-O {[%clk 0:02:14.9]} 9...
Bg7 {[%clk 0:02:18.5]} 10. Re1+ {[%clk 0:02:14.8]} 10... Kf8 {[%clk 0:02:08.1]}
11. Nb3 {[%clk 0:01:56.1]} 11... Nf6 {[%clk 0:02:01.3]} 12. Bf4 {[%clk
0:01:48.8]} 12... Kg8 {[%clk 0:01:50.4]} 13. Nxd5 {[%clk 0:01:46.3]} 13... Nxd5
{[%clk 0:01:48.3]} 14. Qxd5 {[%clk 0:01:47.2]} 14... h5 {[%clk 0:01:43.7]} 15.
Rad1 {[%clk 0:01:45.3]} 15... Be6 {[%clk 0:01:40.9]} 16. Qxd8+ {[%clk
0:01:43.1]} 16... Rxd8 {[%clk 0:01:38.3]} 17. Rxd8+ {[%clk 0:01:30.7]} 17...
Nxd8 {[%clk 0:01:36]} 18. c3 {[%clk 0:01:15.3]} 18... Bf6 {[%clk 0:01:33.3]} 19.
Nc5 {[%clk 0:01:14.3]} 19... Kg7 {[%clk 0:01:28.6]} 20. Be5 {[%clk 0:01:08.4]}
20... Bxe5 {[%clk 0:01:26.4]} 21. Rxe5 {[%clk 0:01:09.3]} 21... Bxa2 {[%clk
0:01:24.2]} 22. Re7 {[%clk 0:01:05.4]} 22... Kf6 {[%clk 0:01:22.6]} 23. Rc7
{[%clk 0:01:03.9]} 23... Bd5 {[%clk 0:01:20.2]} 24. f4 {[%clk 0:00:57.1]} 24...
Ne6 {[%clk 0:01:13.6]} 25. Nxe6 {[%clk 0:00:53.1]} 25... Kxe6 {[%clk 0:01:14]}
26. Kf2 {[%clk 0:00:45.3]} 26... Rd8 {[%clk 0:01:09.7]} 27. Bc4 {[%clk
0:00:19.9]} 27... Bxc4 {[%clk 0:01:06.2]} 28. Rxc4 {[%clk 0:00:19.9]} 28... Rd2+
{[%clk 0:01:06.1]} 29. Ke3 {[%clk 0:00:19.5]} 29... Rxb2 {[%clk 0:01:04.4]} 30.
h4 {[%clk 0:00:19.4]} 30... a5 {[%clk 0:00:57.6]} 31. Rc5 {[%clk 0:00:15.6]}
31... b5 {[%clk 0:00:56.4]} 32. Rc6+ {[%clk 0:00:11.2]} 32... Kd5 {[%clk
0:00:55]} 33. Rf6 {[%clk 0:00:10.8]} 33... a4 {[%clk 0:00:53.9]} 34. Rxf7 {[%clk
0:00:10.8]} 34... a3 {[%clk 0:00:50.7]} 35. Ra7 {[%clk 0:00:10.7]} 35... a2
{[%clk 0:00:49.2]} 36. Kd3 {[%clk 0:00:09.5]} 36... Rg2 {[%clk 0:00:47.2]} 37.
Ra5 {[%clk 0:00:09.1]} 37... Rxg3+ {[%clk 0:00:45.1]} 38. Kc2 {[%clk 0:00:09.2]}
38... Rg1 {[%clk 0:00:41.3]} 39. Kb3 {[%clk 0:00:09.6]} 39... a1=Q {[%clk
0:00:38.4]} 0-1

[Event "*** Titled Tuesday Blitz"]
[Site "Chess.com"]
[Date "2021.02.09"]
[Round "9"]
[White "NikolasTheiss"]
[Black "bsnsun"]
[Result "0-1"]
[WhiteElo "2321"]
[BlackElo "2445"]
[TimeControl "180+1"]
[EndTime "11:44:29 PST"]
[Termination "bsnsun won on time"]

1. h4 {[%clk 0:03:00.9]} 1... e5 {[%clk 0:02:57.3]} 2. h5 {[%clk 0:03:00.5]}
2... h6 {[%clk 0:02:57.2]} 3. d4 {[%clk 0:02:57.6]} 3... exd4 {[%clk 0:02:56.2]}
4. Qxd4 {[%clk 0:02:57]} 4... Nc6 {[%clk 0:02:56.5]} 5. Qd1 {[%clk 0:02:55.7]}
5... Nf6 {[%clk 0:02:55.8]} 6. Nc3 {[%clk 0:02:53.7]} 6... d5 {[%clk 0:02:55.9]}
7. Bf4 {[%clk 0:02:52.4]} 7... Bg4 {[%clk 0:02:54.1]} 8. Nf3 {[%clk 0:02:44.6]}
8... Bxh5 {[%clk 0:02:51.1]} 9. Ne5 {[%clk 0:02:36.9]} 9... Be7 {[%clk
0:02:44.1]} 10. g4 {[%clk 0:02:01.6]} 10... Nxe5 {[%clk 0:02:37.6]} 11. gxh5
{[%clk 0:01:38.7]} 11... Nc4 {[%clk 0:02:30.5]} 12. Nb5 {[%clk 0:00:45.4]} 12...
Nd6 {[%clk 0:02:10.3]} 13. Nd4 {[%clk 0:00:27.8]} 13... Nfe4 {[%clk 0:02:00.1]}
14. Nf3 {[%clk 0:00:11.5]} 14... c6 {[%clk 0:01:59.3]} 15. Qd4 {[%clk
0:00:07.9]} 15... Bf6 {[%clk 0:01:57.9]} 16. Be5 {[%clk 0:00:08]} 16... Nf5
{[%clk 0:01:53]} 17. Bxf6 {[%clk 0:00:06.3]} 17... Qxf6 {[%clk 0:01:53.4]} 18.
Qxf6 {[%clk 0:00:05.9]} 18... Nxf6 {[%clk 0:01:54.3]} 19. O-O-O {[%clk
0:00:05.7]} 19... O-O-O {[%clk 0:01:53.4]} 20. e3 {[%clk 0:00:05.4]} 20... Kb8
{[%clk 0:01:52.8]} 21. Bd3 {[%clk 0:00:04.7]} 21... Nd6 {[%clk 0:01:51.2]} 22.
Rdg1 {[%clk 0:00:05.3]} 22... Rhg8 {[%clk 0:01:51.2]} 23. Rg2 {[%clk 0:00:05.4]}
23... Nde4 {[%clk 0:01:47.5]} 24. Bxe4 {[%clk 0:00:05.2]} 24... dxe4 {[%clk
0:01:47.2]} 25. Nd4 {[%clk 0:00:05]} 25... Rd5 {[%clk 0:01:47.3]} 26. Rh4 {[%clk
0:00:03.3]} 26... Rxh5 {[%clk 0:01:45.5]} 27. Rxh5 {[%clk 0:00:02.7]} 27... Nxh5
{[%clk 0:01:45.3]} 28. Nf5 {[%clk 0:00:03.2]} 28... Nf6 {[%clk 0:01:27.4]} 29.
Nd6 {[%clk 0:00:01]} 29... h5 {[%clk 0:01:18.6]} 30. Nxf7 {[%clk 0:00:01.2]}
30... Kc7 {[%clk 0:01:18.9]} 31. Ng5 {[%clk 0:00:01.7]} 31... Kd6 {[%clk
0:01:18.4]} 32. Rh2 {[%clk 0:00:01.8]} 32... Ke5 {[%clk 0:01:17.3]} 33. f4+
{[%clk 0:00:01.1]} 33... exf3 {[%clk 0:01:16.8]} 34. Nxf3+ {[%clk 0:00:01.6]}
34... Ke4 {[%clk 0:01:17.3]} 35. Nd2+ {[%clk 0:00:01.6]} 35... Kxe3 {[%clk
0:01:17.1]} 36. Rh4 {[%clk 0:00:02.2]} 36... g5 {[%clk 0:01:06.7]} 37. Rb4
{[%clk 0:00:01.5]} 37... b6 {[%clk 0:01:04.5]} 38. Kd1 {[%clk 0:00:01.8]} 38...
g4 {[%clk 0:01:02.9]} 39. Ke1 {[%clk 0:00:02.3]} 39... g3 {[%clk 0:01:02]} 40.
Nf1+ {[%clk 0:00:02.4]} 40... Kf3 {[%clk 0:01:01.5]} 41. Nd2+ {[%clk 0:00:02.5]}
41... Kg2 {[%clk 0:01:01.5]} 42. Rh4 {[%clk 0:00:02]} 42... Re8+ {[%clk
0:01:01]} 43. Kd1 {[%clk 0:00:02.5]} 43... Ng4 {[%clk 0:00:56.9]} 44. Nc4 {[%clk
0:00:01.9]} 44... b5 {[%clk 0:00:50.1]} 0-1

[Event "*** Titled Tuesday Blitz"]
[Site "Chess.com"]
[Date "2021.02.09"]
[Round "9"]
[White "Cambek64"]
[Black "Nachsueb"]
[Result "1-0"]
[WhiteElo "2351"]
[BlackElo "2185"]
[TimeControl "180+1"]
[EndTime "11:44:31 PST"]
[Termination "Cambek64 won by resignation"]

1. e4 {[%clk 0:02:54.4]} 1... c5 {[%clk 0:02:59.3]} 2. Nc3 {[%clk 0:02:53.6]}
2... Nc6 {[%clk 0:02:58.7]} 3. d3 {[%clk 0:02:54]} 3... e6 {[%clk 0:02:58.8]} 4.
f4 {[%clk 0:02:53.3]} 4... a6 {[%clk 0:02:59]} 5. Nf3 {[%clk 0:02:53.4]} 5... g6
{[%clk 0:02:58.9]} 6. Be3 {[%clk 0:02:48.2]} 6... Bg7 {[%clk 0:02:59.2]} 7. Bxc5
{[%clk 0:02:46.9]} 7... d5 {[%clk 0:02:54.5]} 8. Bf2 {[%clk 0:02:05.2]} 8...
dxe4 {[%clk 0:02:48]} 9. dxe4 {[%clk 0:02:03.8]} 9... Qxd1+ {[%clk 0:02:36.3]}
10. Rxd1 {[%clk 0:02:03.8]} 10... Bxc3+ {[%clk 0:02:35.8]} 11. bxc3 {[%clk
0:02:03.2]} 11... Nge7 {[%clk 0:02:34.5]} 12. Bd3 {[%clk 0:01:55.8]} 12... O-O
{[%clk 0:02:34.1]} 13. c4 {[%clk 0:01:52]} 13... f6 {[%clk 0:02:26.5]} 14. Bc5
{[%clk 0:01:50.1]} 14... Re8 {[%clk 0:02:26.2]} 15. Bd6 {[%clk 0:01:47.7]} 15...
Bd7 {[%clk 0:02:22.5]} 16. e5 {[%clk 0:01:46.7]} 16... Nc8 {[%clk 0:02:21.2]}
17. c5 {[%clk 0:01:43.6]} 17... Kf7 {[%clk 0:02:19.7]} 18. O-O {[%clk
0:01:40.2]} 18... Nb4 {[%clk 0:02:15.2]} 19. exf6 {[%clk 0:01:25.3]} 19... Nxd6
{[%clk 0:02:14.1]} 20. cxd6 {[%clk 0:01:17.2]} 20... Kxf6 {[%clk 0:02:09]} 21.
Ne5 {[%clk 0:01:11.6]} 21... Ba4 {[%clk 0:02:00.4]} 22. Rb1 {[%clk 0:01:07.9]}
22... Nc6 {[%clk 0:01:47.4]} 23. Ng4+ {[%clk 0:01:05.4]} 23... Kf7 {[%clk
0:01:38.7]} 24. Rxb7+ {[%clk 0:01:00.7]} 24... Kf8 {[%clk 0:01:39.6]} 25. Nf6
{[%clk 0:00:56.4]} 25... Red8 {[%clk 0:01:39]} 26. Nxh7+ {[%clk 0:00:54.9]}
26... Kg8 {[%clk 0:01:38.6]} 27. Nf6+ {[%clk 0:00:55.2]} 27... Kf8 {[%clk
0:01:39.1]} 28. Bxg6 {[%clk 0:00:53.7]} 28... Ra7 {[%clk 0:01:29]} 29. Rxa7
{[%clk 0:00:23.2]} 29... Nxa7 {[%clk 0:01:29.9]} 30. Rb1 {[%clk 0:00:22.3]}
30... Rxd6 {[%clk 0:01:14.5]} 31. Rb7 {[%clk 0:00:21.6]} 31... Rd1+ {[%clk
0:00:47.4]} 32. Kf2 {[%clk 0:00:20.3]} 32... Bd7 {[%clk 0:00:47.1]} 33. Nxd7+
{[%clk 0:00:19.1]} 33... Kg7 {[%clk 0:00:47.4]} 34. Ne5+ {[%clk 0:00:19.6]}
34... Kf6 {[%clk 0:00:47.5]} 35. Rxa7 {[%clk 0:00:20.3]} 35... Rd2+ {[%clk
0:00:39.5]} 36. Ke3 {[%clk 0:00:18.6]} 36... Rd3+ {[%clk 0:00:34.5]} 1-0

[Event "*** Titled Tuesday Blitz"]
[Site "Chess.com"]
[Date "2021.02.09"]
[Round "9"]
[White "LenkaPtacnikova"]
[Black "michaelshahade"]
[Result "1-0"]
[WhiteElo "2128"]
[BlackElo "1940"]
[TimeControl "180+1"]
[EndTime "11:44:31 PST"]
[Termination "LenkaPtacnikova won by resignation"]

1. d4 {[%clk 0:03:00.9]} 1... Nf6 {[%clk 0:02:58.9]} 2. c4 {[%clk 0:02:58.5]}
2... e6 {[%clk 0:02:58.8]} 3. Nc3 {[%clk 0:02:57.3]} 3... Bb4 {[%clk 0:02:58.7]}
4. Qc2 {[%clk 0:02:54.9]} 4... O-O {[%clk 0:02:52.4]} 5. Bg5 {[%clk 0:02:47.4]}
5... c5 {[%clk 0:02:48.9]} 6. dxc5 {[%clk 0:02:45.4]} 6... Bxc5 {[%clk
0:02:43.7]} 7. Nf3 {[%clk 0:02:40.6]} 7... Qb6 {[%clk 0:02:32]} 8. e3 {[%clk
0:02:35.3]} 8... Be7 {[%clk 0:02:27.1]} 9. Bd3 {[%clk 0:02:32.8]} 9... h6 {[%clk
0:02:20]} 10. Bf4 {[%clk 0:02:32]} 10... d6 {[%clk 0:02:12.9]} 11. h3 {[%clk
0:02:29.6]} 11... Nc6 {[%clk 0:02:09]} 12. a3 {[%clk 0:02:23.5]} 12... Bd7
{[%clk 0:01:59.3]} 13. O-O {[%clk 0:02:21.9]} 13... Rfd8 {[%clk 0:01:56.5]} 14.
b4 {[%clk 0:02:21]} 14... Be8 {[%clk 0:01:50.4]} 15. Rfd1 {[%clk 0:02:14.3]}
15... a6 {[%clk 0:01:34]} 16. Rac1 {[%clk 0:02:11.6]} 16... Rac8 {[%clk
0:01:27.3]} 17. Qe2 {[%clk 0:02:02.1]} 17... Nd7 {[%clk 0:01:13.4]} 18. e4
{[%clk 0:01:55.1]} 18... Nde5 {[%clk 0:01:11.2]} 19. Be3 {[%clk 0:01:52.1]}
19... Qc7 {[%clk 0:01:06.4]} 20. Nd5 {[%clk 0:01:22.7]} 20... exd5 {[%clk
0:00:58.4]} 21. cxd5 {[%clk 0:01:19.2]} 21... Nxf3+ {[%clk 0:00:56.7]} 22. gxf3
{[%clk 0:01:17.5]} 22... Qd7 {[%clk 0:00:47.2]} 23. dxc6 {[%clk 0:01:17.1]}
23... Rxc6 {[%clk 0:00:44.2]} 24. Rxc6 {[%clk 0:01:10.6]} 24... Qxc6 {[%clk
0:00:40.3]} 25. Bc4 {[%clk 0:01:00.5]} 25... Qd7 {[%clk 0:00:37]} 26. Qf1 {[%clk
0:00:57.2]} 26... Bg5 {[%clk 0:00:30.2]} 27. f4 {[%clk 0:00:52.3]} 27... Bh4
{[%clk 0:00:27.1]} 28. Qg2 {[%clk 0:00:51]} 28... Qc7 {[%clk 0:00:21.9]} 29. Bd5
{[%clk 0:00:48.5]} 29... Bc6 {[%clk 0:00:19.6]} 30. Rc1 {[%clk 0:00:24]} 30...
Qd7 {[%clk 0:00:16.5]} 31. Bd4 {[%clk 0:00:21.4]} 31... Bg5 {[%clk 0:00:08]} 32.
fxg5 {[%clk 0:00:20.2]} 32... Bxd5 {[%clk 0:00:08.6]} 33. exd5 {[%clk
0:00:19.7]} 33... hxg5 {[%clk 0:00:08]} 34. Qxg5 {[%clk 0:00:18]} 1-0

[Event "*** Titled Tuesday Blitz"]
[Site "Chess.com"]
[Date "2021.02.09"]
[Round "9"]
[White "Murad_Ibrahimli"]
[Black "Skatchkov_V"]
[Result "1-0"]
[WhiteElo "2714"]
[BlackElo "2535"]
[TimeControl "180+1"]
[EndTime "11:44:33 PST"]
[Termination "Murad_Ibrahimli won by resignation"]

1. c4 {[%clk 0:03:00.9]} 1... e5 {[%clk 0:02:58.2]} 2. Nc3 {[%clk 0:02:57.8]}
2... Nf6 {[%clk 0:02:58.3]} 3. e3 {[%clk 0:02:56.8]} 3... Bb4 {[%clk 0:02:52.4]}
4. Nge2 {[%clk 0:02:56.8]} 4... Nc6 {[%clk 0:02:52.3]} 5. Nd5 {[%clk 0:02:50.1]}
5... Nxd5 {[%clk 0:02:48.7]} 6. cxd5 {[%clk 0:02:49.9]} 6... Nb8 {[%clk
0:02:49.6]} 7. a3 {[%clk 0:02:45.8]} 7... Be7 {[%clk 0:02:49.7]} 8. b4 {[%clk
0:02:43.1]} 8... d6 {[%clk 0:02:49.7]} 9. d4 {[%clk 0:02:40.7]} 9... Nd7 {[%clk
0:02:48.2]} 10. Bb2 {[%clk 0:02:36.5]} 10... O-O {[%clk 0:02:48]} 11. dxe5
{[%clk 0:02:28.4]} 11... Nxe5 {[%clk 0:02:48.9]} 12. Ng3 {[%clk 0:02:23.9]}
12... a5 {[%clk 0:02:48.8]} 13. Be2 {[%clk 0:02:18.9]} 13... Bf6 {[%clk
0:02:37.8]} 14. Bd4 {[%clk 0:02:10.5]} 14... c5 {[%clk 0:02:03.4]} 15. dxc6
{[%clk 0:02:03.4]} 15... bxc6 {[%clk 0:02:03.1]} 16. O-O {[%clk 0:02:00]} 16...
Be6 {[%clk 0:01:22.1]} 17. Qc2 {[%clk 0:01:44.9]} 17... axb4 {[%clk 0:01:12.6]}
18. axb4 {[%clk 0:01:44]} 18... Rxa1 {[%clk 0:01:13.5]} 19. Rxa1 {[%clk
0:01:42.8]} 19... Qb8 {[%clk 0:01:06.9]} 20. Rb1 {[%clk 0:01:39.4]} 20... Qb7
{[%clk 0:00:59.6]} 21. h3 {[%clk 0:01:33.7]} 21... Rb8 {[%clk 0:00:57.7]} 22.
Ne4 {[%clk 0:01:05.5]} 22... Be7 {[%clk 0:00:57]} 23. b5 {[%clk 0:01:05.5]}
23... Bd5 {[%clk 0:00:41.6]} 24. Nc3 {[%clk 0:00:58.5]} 24... c5 {[%clk
0:00:05.7]} 25. Bxe5 {[%clk 0:00:55.3]} 25... dxe5 {[%clk 0:00:04.9]} 26. Nxd5
{[%clk 0:00:54.1]} 26... Qxd5 {[%clk 0:00:05.8]} 27. Bc4 {[%clk 0:00:54]} 27...
Qb7 {[%clk 0:00:04.3]} 28. Qf5 {[%clk 0:00:51.7]} 28... Bf6 {[%clk 0:00:04.3]}
29. b6 {[%clk 0:00:49.8]} 29... Rd8 {[%clk 0:00:04.2]} 30. e4 {[%clk 0:00:43.4]}
30... Rd6 {[%clk 0:00:03.7]} 31. Bd5 {[%clk 0:00:42.2]} 31... Qb8 {[%clk
0:00:03.3]} 32. b7 {[%clk 0:00:41.8]} 32... g6 {[%clk 0:00:04.2]} 33. Qc8+
{[%clk 0:00:39.1]} 33... Rd8 {[%clk 0:00:04.7]} 34. Qxc5 {[%clk 0:00:38.5]}
34... Kg7 {[%clk 0:00:02.6]} 35. Ra1 {[%clk 0:00:38.1]} 35... Qd6 {[%clk
0:00:01.8]} 36. Qxd6 {[%clk 0:00:37.7]} 1-0